Cogmind - Beta 13 @@@ ROGUE MODE // 2024.07.01 @ 22:11:43 Player: keygenpie Result: Smashed by cave-in Performance ------------- Evolutions (1) 500 Regions Visited (2) 400 Robots Destroyed (26) 130 Value Destroyed (744) 744 Prototype IDs (0) 0 Alien Tech Used (0) 0 Bonus (0) 0 TOTAL SCORE: 1774 Bonus ------- None Cogmind --------- Core Integrity 0/400 Matter 300/300 Energy 100/100 System Corruption 13% Temperature Cool (12) Movement Core (100) Ox1 Location -9/Materials Parts ------- > --- POWER (1) -------- (None) > --- PROPULSION (3) --- (None) > --- UTILITY (3) ------ High-powered Tractor Beam > --- WEAPON (2) ------- Heavy Assault Rifle > --- INVENTORY (5) ---- Ion Engine Terrain Scanner Peak State ------------ > --- POWER ------------ Light Ion Engine > --- PROPULSION ------- Aluminum Leg Aluminum Leg Aluminum Leg > --- UTILITY ---------- Cooling System Small Storage Unit Visual Processing Unit > --- WEAPON ----------- EM Shotgun EM Shotgun > --- INVENTORY -------- Terrain Scanner EM Shotgun Grenade Launcher [Rating: 13] Favorites ----------- Power Light Ion Engine Engine Light Ion Engine Propulsion Aluminum Leg Treads Light Treads Leg Aluminum Leg Flight Unit VTOL Module Utility Small Storage Unit Device Cooling System Storage Small Storage Unit Processor Visual Processing Unit Weapon Medium Laser Energy Gun Medium Laser Energy Cannon Light EM Pulse Cannon Ballistic Gun Heavy Assault Rifle Launcher Grenade Launcher Build | -11 -10 -9 ------- Run | Yrd Mat Mat Slots Evolved 2 | . . 2 Power . | . . . Propulsion 1 | . . 1 Utility 1 | . . 1 Weapon . | . . . Parts Attached 34 | 6 10 18 Power 3 | 1 1 1 Engine 3 | 1 1 1 Core . | . . . Reactor . | . . . Propulsion 9 | 2 2 5 Treads 2 | 2 . . Leg 6 | . 2 4 Wheel . | . . . Hover . | . . . Flight 1 | . . 1 Utility 8 | 1 4 3 Device 3 | . 2 1 Storage 4 | 1 2 1 Processor 1 | . . 1 Hackware . | . . . Protection . | . . . Artifact . | . . . Weapon 14 | 2 3 9 Energy Gun 9 | 2 3 4 Energy Cannon 2 | . . 2 Ballistic Gun 1 | . . 1 Ballistic Cannon . | . . . Launcher 2 | . . 2 Special Weapon . | . . . Impact Weapon . | . . . Slashing Weapon . | . . . Piercing Weapon . | . . . Special Melee Weapon . | . . . Unidentified Prototypes . | . . . Parts Lost 17 | . 2 15 Power 3 | . 1 2 Propulsion 5 | . . 5 Utility 3 | . . 3 Weapon 6 | . 1 5 Highest Loss Streak 8 | . 2 8 To Critical Strikes . | . . . Average Slot Usage (%) 90 | . 96 85 Engine 11 | . 13 9 Treads 9 | . 23 . Leg 16 | . 4 24 Flight 2 | . . 3 Device 11 | . 13 11 Storage 13 | . 14 13 Processor 3 | . . 5 Energy Gun 15 | . 25 8 Ballistic Gun 1 | . . 2 Launcher 3 | . . 5 Naked Turns . | . . . Heaviest Build 16 | 12 16 16 Greatest Support 40 | 40 40 30 Greatest Overweight (x) 5 | . . 5 Average Overweight (x) . | . . . Largest Inventory Capacity 25 | 8 25 8 Average Capacity 7 | 7 8 8 Most Carried 8 | 6 8 5 Average Carried 3 | 2 5 3 Final Capacity 8 | 8 8 5 Final Carried 5 | 3 5 2 Class Distribution -------------------- 100% | Mutant Dominant Class ---------------- Mutant | -10/Materials Mutant | -9/Materials Resources | -11 -10 -9 ----------- Run | Yrd Mat Mat Matter Collected 784 | 181 190 413 Remotely 182 | . . 182 Salvage Created 901 | . 352 549 Parts 54 | . 15 39 Haulers Intercepted . | . . . Recyclers Shooed . | . . . Parts Field Recycled . | . . . Retrieved Matter . | . . . Parts Self-Destructed . | . . . Prevented . | . . . Kills | -11 -10 -9 ------- Run | Yrd Mat Mat Combat Hostiles Destroyed 17 | . 6 11 Guns 15 | . 6 9 AOE 2 | . . 2 Classes Destroyed 8 | . 3 5 Worker 3 | . . 3 Builder 1 | . . 1 Tunneler 1 | . . 1 Mechanic 1 | . 1 . Watcher 3 | . 1 2 Grunt 14 | . 6 8 Brawler 1 | . . 1 Sentry 2 | . . 2 Best Kill Streak 5 | . 4 5 Combat Bots Only 2 | . 2 2 Max Kills in Single Turn 1 | . 1 1 Gunslinging . | . . . Exploded 1 | . . 1 Melee . | . . . Uniques/NPCs Destroyed . | . . . Combat | -11 -10 -9 -------- Run | Yrd Mat Mat Hostile Shots Fired 188 | . 53 135 Missed 57 | . 16 41 Damage Taken 2102 | . 511 1591 Core 556 | . 121 435 Absorbed by Shields . | . . . Core Remaining (%) 75 | 100 51 . Volleys Fired 75 | . 22 53 Largest 2 | . 2 2 Hottest 121 | . 100 121 Shots Fired 133 | . 42 91 Gun 115 | . 42 73 Cannon 1 | . . 1 Launcher 17 | . . 17 Special . | . . . Kinetic 12 | . . 12 Thermal 59 | . 16 43 Explosive 17 | . . 17 Electromagnetic 45 | . 26 19 Robot Hit Streak 11 | . 11 10 Robot Miss Streak 4 | . 4 2 Penetration Max . | . . . Secondary Targets 3 | . . 3 Max Gunslinging Chain 1 | . . 1 Shots Hit Robots 93 | . 28 65 Core Hits 48 | . 18 30 Critical Kills . | . . . Critical Parts Destroyed . | . . . Critical Strikes 1 | . 1 . Burn 1 | . 1 . Melee Attacks . | . . . Impact . | . . . Slashing . | . . . Piercing . | . . . Sneak Attacks . | . . . Combat Hostiles . | . . . Follow-up Attacks . | . . . Damage Inflicted 1791 | 3 425 1363 Guns 1237 | . 425 812 Cannons 22 | . . 22 Explosions 529 | . . 529 Melee . | . . . Ramming 3 | 3 . . Kinetic 139 | . . 139 Thermal 622 | . 91 531 Explosive 444 | . . 444 Electromagnetic 583 | . 334 249 Impact . | . . . Slashing . | . . . Piercing . | . . . Highest Corruption 3 | . 2 3 Average Corruption 2 | . 2 3 Corruption Purged . | . . . Corruption Blocked . | . . . Effects 7 | . 4 3 Message Errors 1 | . . 1 Matter Fused 3 | . 2 1 Heat Flow Errors 1 | . 1 . Energy Discharges 1 | . 1 . Parts Rejected 1 | . . 1 Overload Shots . | . . . Overflow Damage 47 | . . 47 Projectiles . | . . . Explosions 47 | . . 47 Melee . | . . . Knockbacks . | . . . Impact . | . . . Kinetic . | . . . Secondary . | . . . Self-Inflicted Damage 85 | . . 85 Shots 4 | . . 4 Rammed 1 | 1 . . Targets Rammed 1 | 1 . . Kicked . | . . . Crushed . | . . . Highest Temperature 372 | . 372 15 Average Temperature 140 | . 181 5 Received Heat Transfer 864 | . 309 555 Effects 1 | . 1 . Interference 1 | . 1 . Siege Activations . | . . . Robots Corrupted . | . . . Combat Hostiles . | . . . Parts Fried 2 | . 1 1 Impact Corruptions . | . . . Robots Melted . | . . . Combat Hostiles . | . . . Parts Melted 2 | . 1 1 Heat Transferred 1424 | . 333 1091 Parts Sabotaged . | . . . Parts Stolen . | . . . Parts Stripped . | . . . Power Chain Reactions . | . . . Alert | -11 -10 -9 ------- Run | Yrd Mat Mat Peak Influence 243 | . 142 243 Initial . | . . . Average 84 | . 38 124 Maximum Alert Level 1 | . . 1 Low Security (%) 93 | 100 100 88 Level 1 6 | . . 11 Level 2 . | . . . Level 3 . | . . . Level 4 . | . . . Level 5 . | . . . High Security . | . . . Max Security . | . . . Squads Dispatched 2 | . 1 1 Investigation 1 | . . 1 Extermination . | . . . Reinforcement 1 | . 1 . Assault . | . . . Garrison . | . . . Intercept . | . . . Searches Triggered . | . . . Construction Impeded . | . . . Haulers Reinforced . | . . . Active Scanning Responses . | . . . Cargo Convoy Interrupts . | . . . Stealth | -11 -10 -9 --------- Run | Yrd Mat Mat Distress Signals 4 | . 1 3 Communications Jammed . | . . . Distress Signals . | . . . Times Spotted 23 | . 7 16 Peak Tracking Total 4 | . 3 4 Tactical Retreats . | . . . Traps | -11 -10 -9 ------- Run | Yrd Mat Mat Traps Triggered 1 | . 1 . Indirectly . | . . . Trap Hack Attempts . | . . . Triggered . | . . . Disarmed . | . . . Reprogrammed . | . . . Reused . | . . . Traps Extracted . | . . . Installed . | . . . Triggered . | . . . Machines | -11 -10 -9 ---------- Run | Yrd Mat Mat Machines Disabled 4 | . . 4 Max in Single Turn 1 | . . 1 Machines Repaired . | . . . Machines Dismantled . | . . . Machines Sabotaged . | . . . Overloaded Fab Kills . | . . . Hacking | -11 -10 -9 --------- Run | Yrd Mat Mat Machines Accessed 4 | . 1 3 Terminals 3 | . 1 2 Fabricators . | . . . Repair Stations . | . . . Recycling Units . | . . . Scanalyzers 1 | . . 1 Garrison Access . | . . . Total Hacks 10 | . 3 7 Successful 3 | . . 3 Failed 7 | . 3 4 Catastrophic 1 | . . 1 Database Lockouts . | . . . Manual . | . . . Terminals 7 | . 3 4 Fabricators . | . . . Repair Stations . | . . . Recycling Units . | . . . Scanalyzers 3 | . . 3 Garrison Access . | . . . Terminal Hacks 2 | . . 2 Recall Investigation 1 | . . 1 Hauler Manifests 1 | . . 1 Fabricator Hacks . | . . . Repair Station Hacks . | . . . Recycling Unit Hacks . | . . . Scanalyzer 1 | . . 1 Insert Component 1 | . . 1 Garrison Access Hacks . | . . . Unauthorized Hacks . | . . . Terminals . | . . . Fabricators . | . . . Repair Stations . | . . . Recycling Units . | . . . Scanalyzers . | . . . Garrison Access . | . . . Data Cores Recovered . | . . . Used . | . . . Hacking Detections 3 | . 1 2 Full Trace Events 1 | . . 1 Feedback Events . | . . . Feedback Blocked . | . . . Robot Schematics Acquired . | . . . Robots Built . | . . . Authchips . | . . . Time . | . . . Total Robot Build Rating . | . . . Part Schematics Acquired . | . . . Parts Built . | . . . Authchips . | . . . Time . | . . . Total Part Build Rating . | . . . Parts Repaired . | . . . Time . | . . . Parts Recycled . | . . . Recycled Matter . | . . . Retrieved Matter . | . . . Retrieved Components . | . . . Parts Scanalyzed 1 | . . 1 Part Schematics Acquired . | . . . Parts Damaged 1 | . . 1 Bothacking | -11 -10 -9 ------------ Run | Yrd Mat Mat Used RIF Installer . | . . . Robots Hacked . | . . . Non-combat . | . . . Combat . | . . . Robot Hacks Applied . | . . . Relay Couplers Released . | . . . Fabnet Peak Effective % . | . . . Robots Rewired . | . . . Allies Hacked . | . . . Hacks Repelled . | . . . Allies | -11 -10 -9 -------- Run | Yrd Mat Mat Total Allies . | . . . Largest Group . | . . . Highest-Rated Group . | . . . Highest-Rated Ally . | . . . Total Orders . | . . . Ally Attacks . | . . . Total Damage . | . . . Kills . | . . . Allies Corrupted . | . . . Allies Melted . | . . . Intel | -11 -10 -9 ------- Run | Yrd Mat Mat Robot Analysis Total . | . . . Derelict Logs Recovered . | . . . Drone Launches . | . . . Drone Recoveries . | . . . Exploration | -11 -10 -9 ------------- Run | Yrd Mat Mat Turns Passed 1234 | 85 451 698 Spaces Moved 686 | 48 232 406 Core 8 | 7 . 1 Treads 219 | 41 178 . Legs 459 | . 54 405 Wheels . | . . . Hover . | . . . Flight . | . . . Fastest Speed 50 | 50 120 120 Average Speed 134 | 143 150 124 Slowest Speed 300 | 160 160 300 Overloaded Moves . | . . . Propulsion Burnouts . | . . . Robots Hopped . | . . . Cave-ins Triggered 1 | . . 1 Exploration Rate (%) 19 | 5 33 21 Regions Visited 2 Branch Regions . Pre-discovered Areas . | . . . Known Exits Taken . | . . . Unknown Exits Taken 2 | 1 1 . Scrap Searched . | . . . Spaces Dug . | . . . Terrain Destroyed 108 | . . 108 Melee . | . . . Projectile . | . . . AOE 108 | . . 108 Terrain Rammed . | . . . Walls Destroyed . | . . . Machines Disabled . | . . . Actions | -11 -10 -9 --------- Run | Yrd Mat Mat Total 870 | 63 296 511 Wait 22 | . 10 12 Move 684 | 47 231 406 Hop . | . . . Pick Up 38 | 9 14 15 Fast Attach . | . . . Attach 31 | 6 10 15 Detach . | . . . Swap 3 | . . 3 Drop 16 | . 9 7 Fire 75 | . 22 53 Melee . | . . . Ram . | . . . Kick . | . . . Crush 1 | 1 . . Escape Stasis . | . . . Rewire . | . . . Trap . | . . . Miscellaneous . | . . . Route ------- -11/Scrapyard -10/Materials -9/Materials History --------- Turn | Location | Event 11 | -11/Scrapyard | Discovered new exit (range 16) 86 | -11/Scrapyard | Entered Materials 318 | -10/Materials | Build established: Mutant 350 | -10/Materials | Discovered new exit (range 16) 537 | -10/Materials | Entered another Materials area 537 | -9/Materials | Evolved 2 slots: Propulsion x1, Utility x1 896 | -9/Materials | Core integrity fell below 50% 932 | -9/Materials | Lost 7 parts (1p2n1u3w) 1025 | -9/Materials | Core integrity fell below 20% 1236 | -9/Materials | Crushed by falling debris 1236 | -9/Materials | Smashed by cave-in Last Messages --------------- 01223_ Acquired 3 matter. 01226_ Aluminum Leg destroyed. 01227_ R-06 Scavenger collects Lgt. Armor Plating. 01228_ Acquired 3 matter. 01228_ G-47 Trooper misfires. 01230_ R-06 Scavenger collects Wheel. 01234_ Acquired 3 matter. 01236_ The unstable cave ceiling collapses. 01236_ Crushed by falling debris. 01236_ Sml. Storage Unit destroyed. 01236_ System corrupted by crushing effect (+2). 01236_ Sml. Matter Pod destroyed. 01236_ System corrupted by crushing effect (+1). 01236_ EM Shotgun destroyed. 01236_ System corrupted by crushing effect (+1). 01236_ VTOL Module destroyed. 01236_ System corrupted by crushing effect (+2). 01236_ Lgt. Ion Engine destroyed. 01236_ System corrupted by crushing effect (+4). Map ----- +----------------------------------------------------+ | ???????????????????????# #?????????????????????? | | ???????????????????????# #?????????????????????? | | ???????????????????????# #?????????????????????? | | ???????????????????????# #?????????????????????? | | ???????????????????????# #?????????????????????? | | ??????????????????????? #?????????????????????? | | ???????????????????????# #?????????????????????? | | ???????????????????????# #?????????????????????? | | ???????????????????????#% #?????????????????????? | | ??????????????????????## ##????????????????????? | | ???????????????########[% #????????????????????? | | ???????????????# % % #????????????????????? | | ???????????????# ^ ^ ^ T #????????????????????? | | ???????????????# ^^ #????????????????????? | | ???????????????# #### #????????????????????? | | ???????????????# #?####+#####??????????????????? | | ???????????????# #?# #??????????????????? | | ???????????????# #?# #??????????????????? | | ???????????????# #?# """ #??????????????????? | | ???????????????# #?# """ #??????????????????? | | ???????????????# #?# """ ##?????????????????? | | ???????????????# #?# "" #?????????????????? | | ???????????????# #?# #?????????????????? | | ???????????????# #?# = #??????????????????? | | ???##########??# #?# gg # # #?????????? | | #??# #??# #?####@ % #???????????? | | #??# """"" #??# #????#### ???????? | | #### """"" #??# #???????? ???????? | | + """"" #??# #???????? ????????? | | #### """"" #??# #????????? ????????? | | #??# """"" #??# #????????? """ """?????????? | | #??# """"" #??# #????????? """ ""??????????? | | ???# """"" #??# #????????? ?"???????????????? | | #??# #??# #?????????? ????????????????? | | ###### # ##??# #?????????? ????????????????? | | #??# #?????????? ???????????????? | | #??# #??????????####???????????????? | | ##??# #?????????????????????????????? | | ##??# #?????????????????????????????? | | = ##??# #?????????????????????????????? | | ##??# #?????????????????????????????? | | "" ##### #?????????????????????????????? | | "" # ## #?????????????????????????????? | | ["""""" # # # #?????????????????????????????? | | """"" ##### #?????????????????????????????? | | """"" #?????????????????????????????? | | ###### #?????????????????????????????? | | # #?????????????????????????????? | | ###### # #?????????????????????????????? | | #??? #### #?????????????????????????????? | +----------------------------------------------------+ Best States ------------- Heat Dissipation 50 Energy Generation 10 Energy Capacity 125 Matter Stores 350 Matter Capacity 350 Sight Range 18 Terrain Scan Range 14 Terrain Scan Density 10 Evasion (%) 55 Recoil Reduction 2 Item Schematics ----------------- None Robot Schematics ------------------ None Fabricated ------------ Nothing Alien Tech Used ----------------- None Achievements -------------- GoHome() Use The Force Challenges ------------ None Game ------ Seed DisruptorProcessingCasing Manual? 0 Play Time 00:14:49 Cumulative 5.3 hours Start 2024.07.01 @ 21:57:21 End 2024.07.01 @ 22:11:43 Sessions 1 Manual Loads 0 Difficulty Rogue Special Mode None Game No. 14 Rogue 14 Adventurer 0 Explorer 0 Win Type - Total 0 Types 0/0/0/0/0/0/0/0/0 Lore% 4 Gallery% 13 Achievement% 11 Wizard Run 0 Options --------- Layout 1 ASCII 0 Keyboard 0 Movement Arrows Keybinds 0 Fullscreen 1 Font 24/Tamsyn Map View 50x35 Zoom Use 0% Tactical HUD 1 Map Filters NONE Filters NONE Steam 1 RUN: fde2c8a3-eeee-4366-a211-13766380b709